bitfinex/quotes_ETHUSD_20260102
["timestamp","ask_amount","ask_price","bid_price","bid_amount"]
[1767386836452,3.20712944,3120.0,3119.2,2.63771596]
[1767386836775,3.20712944,3120.0,3119.4,2.39683269]
[1767386837268,5.524836,3120.0,3119.4,2.39683269]
[1767386837579,5.524836,3120.0,3119.2,2.39783269]
[1767386837763,2.31770656,3119.9,3119.2,2.39783269]
[1767386837968,3.20533367,3119.8,3119.2,2.39783269]
[1767386838150,5.52298367,3119.9,3119.2,2.39783269]
[1767386838351,6.48008567,3119.9,3119.2,2.39783269]
[1767386838690,2.31770656,3119.8,3119.2,2.39783269]
[1767386838867,2.35777451,3119.7,3119.2,0.001]
[1767386839081,2.31770656,3119.7,3119.2,0.001]
[1767386839378,2.31770656,3119.5,3119.0,0.001]
[1767386839868,2.31770656,3119.3,3119.0,0.001]
[1767386840785,2.31770656,3119.3,3118.8,0.001]
[1767386841678,2.31770656,3119.3,3118.5,0.001]
[1767386842080,2.31770656,3119.1,3118.5,0.001]
[1767386842295,2.31770656,3119.0,3118.5,0.001]
[1767386844683,5.52396517,3118.9,3118.5,0.001]
[1767386845404,2.31770656,3118.8,3118.5,0.001]
[1767386846117,5.52390256,3119.0,3118.5,0.001]
[1767386846282,8.73009856,3119.0,3118.5,0.001]
[1767386846487,3.27801175,3118.9,3118.5,0.001]
[1767386846921,6.48432178,3118.9,3118.5,0.001]
[1767386849313,3.27801175,3118.9,3118.5,0.001]
[1767386850610,6.48430083,3118.9,3118.5,0.001]
[1767386851783,2.25788384,3118.8,3118.5,0.001]
[1767386852184,2.25788384,3118.8,3118.3,0.001]
[1767386852185,3.22094727,3118.8,3118.3,0.001]
[1767386854217,6.4273335,3118.8,3118.3,0.001]
[1767386854402,2.25788384,3118.7,3117.8,2.38380389]
[1767386854583,2.25788384,3118.5,3117.8,2.38380389]
[1767386854899,2.48768043,3118.5,3117.8,2.38380389]
[1767386856297,5.46465654,3118.4,3117.8,2.38380389]
[1767386858524,2.25788384,3118.3,3117.6,5.59134911]
[1767386858818,2.25788384,3118.3,3117.7,2.38380389]
[1767386859718,3.2067727,3118.4,3117.7,2.38380389]
[1767386859719,0.22979659,3118.5,3117.7,2.38380389]
[1767386859917,5.46448918,3118.6,3117.8,2.38380389]
[1767386860118,2.29796721,3118.5,3117.4,2.38380389]
[1767386860317,2.29796721,3118.5,3117.3,0.001]
[1767386860318,2.25788384,3118.4,3117.3,0.001]
[1767386860622,2.25788384,3118.2,3117.4,3.20775183]
[1767386860825,2.25788384,3118.2,3117.4,5.59155572]
[1767386861292,2.25788384,3118.2,3117.4,2.38380389]
[1767386861894,2.25788384,3118.1,3117.4,2.38380389]
[1767386862510,2.25788384,3118.1,3117.4,5.59157854]
[1767386863624,2.25788384,3118.1,3117.5,2.38380389]
[1767386863799,0.841,3118.7,3117.7,2.38280389]
[1767386863800,5.46450275,3118.6,3117.7,2.38280389]
[1767386864123,8.67112166,3118.6,3117.7,2.38280389]
[1767386864807,3.20651401,3118.7,3117.8,2.38380389]
[1767386864999,6.41302802,3118.7,3117.9,2.38380389]
[1767386865204,5.46439785,3118.7,3117.9,2.38380389]
[1767386866129,8.67091186,3118.7,3117.9,2.38380389]
[1767386866313,5.46439785,3118.7,3118.0,2.38380389]
[1767386867421,3.20640082,3118.8,3118.0,2.38380389]
[1767386867626,5.46419497,3118.9,3118.2,2.38380389]
[1767386869731,5.46419497,3118.9,3118.2,5.59076739]
[1767386870539,2.25788384,3118.9,3118.2,5.59076739]
[1767386870705,0.002,3119.0,3118.3,2.38380389]
[1767386870904,0.002,3119.0,3118.4,2.38280389]
[1767386871605,0.002,3119.0,3118.5,2.38380389]
[1767386872938,4.04775264,3119.4,3118.9,2.38280389]
[1767386873118,0.842,3119.4,3118.5,2.38380389]
[1767386873323,3.09988384,3119.4,3118.6,3.26353114]
[1767386873641,0.002,3119.0,3118.6,6.47009781]
[1767386873844,3.20569425,3119.5,3118.7,2.38380389]
[1767386874007,5.46357809,3119.5,3118.7,2.38380389]
[1767386874536,3.44134235,3119.6,3118.7,2.38380389]
[1767386874751,6.30534017,3119.7,3118.9,2.38380389]
[1767386874939,3.09988384,3119.7,3118.9,2.38380389]
[1767386875106,2.25788384,3119.9,3118.9,2.38380389]
[1767386875302,8.67015674,3120.0,3118.9,2.38380389]
[1767386875828,5.46502029,3120.0,3119.1,2.38380389]
[1767386876027,6.41622655,3120.0,3119.1,2.38380389]
[1767386877440,9.621363,3120.0,3119.1,2.38380389]
[1767386877636,2.25788384,3119.9,3119.1,5.58976392]
[1767386877840,2.25788384,3119.9,3119.2,2.38380389]
[1767386879853,3.20533367,3119.8,3119.2,2.38380389]
[1767386880460,2.44008437,3119.7,3118.2,2.44551828]
[1767386880661,2.40001642,3119.6,3118.5,2.44551828]
[1767386880948,2.40001642,3119.6,3118.7,3.20640807]
[1767386881563,2.40001642,3119.6,3118.8,3.20633812]
[1767386881850,2.40001642,3119.5,3118.8,3.20633812]
[1767386882015,3.20733367,3119.8,3118.8,3.20633812]
[1767386882016,0.002,3119.8,3118.9,2.44551828]
[1767386882210,0.002,3120.0,3119.4,2.44451828]
[1767386882454,3.20714382,3120.0,3119.4,2.44451828]
[1767386882779,5.60716024,3120.0,3118.9,2.44551828]
[1767386882980,5.60716024,3120.0,3119.1,2.44551828]
[1767386883254,8.81230406,3120.0,3119.1,2.44551828]
[1767386884140,2.40001642,3119.9,3119.1,2.44551828]
[1767386884340,2.40001642,3119.9,3119.2,2.44551828]
[1767386885355,2.40001642,3119.7,3118.9,3.206178]
[1767386885656,2.44008565,3119.6,3118.6,2.44551828]
[1767386885859,2.40001642,3119.4,3118.6,2.44551828]
[1767386886153,2.40001642,3119.2,3118.4,5.65224456]
[1767386886318,2.40001642,3119.2,3118.4,2.44551828]
[1767386886841,2.40001642,3119.2,3118.4,5.65226574]
[1767386887354,2.40001642,3119.2,3118.5,3.20665841]
[1767386887562,2.40001642,3119.2,3118.4,5.65224997]
[1767386887847,2.72813106,3119.2,3118.4,2.44551828]
[1767386888026,2.40001642,3119.0,3118.1,2.44551828]
[1767386889127,5.60618693,3119.0,3118.2,2.44551828]
[1767386890033,5.60618693,3119.0,3118.5,0.001]
[1767386890234,6.52021532,3119.0,3118.5,0.001]
[1767386891027,2.72813106,3119.2,3118.5,2.44651828]
[1767386891339,2.40001642,3119.1,3118.5,0.001]
[1767386892859,2.40001642,3119.1,3118.5,3.20765675]
[1767386893026,2.40001642,3119.1,3118.5,0.001]
[1767386893226,5.60616089,3119.1,3118.5,0.001]
[1767386893427,6.52018521,3119.1,3118.5,0.001]
[1767386895556,3.31404074,3119.1,3118.5,0.001]
[1767386896360,0.91402432,3119.1,3118.6,2.44551828]
[1767386896658,0.002,3119.4,3118.6,2.44551828]
[1767386897244,3.20775425,3119.4,3118.6,2.44551828]
[1767386897450,3.20775425,3119.4,3118.7,2.44551828]
[1767386898931,2.44008951,3119.3,3118.5,5.65314678]
[1767386899329,5.60592062,3119.3,3118.6,3.20656047]
[1767386899840,2.40001642,3119.2,3118.5,2.44651828]
[1767386900028,2.44009208,3119.1,3118.5,2.44651828]
[1767386900850,2.44009208,3119.1,3118.5,0.001]
[1767386901051,2.64402563,3119.0,3118.5,0.001]
[1767386903480,2.40001642,3119.0,3118.5,0.001]
[1767386903628,0.002,3119.4,3118.6,2.44551828]
[1767386903959,0.002,3119.4,3118.8,2.44551828]
[1767386906063,0.002,3119.4,3118.9,3.20625861]
[1767386906271,0.002,3119.4,3118.9,5.65177689]
[1767386907273,0.002,3119.4,3118.9,2.44551828]
[1767386907856,2.43824156,3119.9,3119.1,2.44020279]
[1767386908154,5.6434787,3119.9,3119.2,5.64615303]
[1767386908462,2.43824156,3119.9,3119.2,5.64615303]
[1767386908773,5.6434727,3119.9,3119.2,2.44020279]
[1767386908962,2.43824156,3119.8,3119.2,2.44020279]
[1767386909276,2.43824156,3119.8,3119.2,3.32543136]
[1767386910574,2.48534714,3119.7,3118.7,3.20641727]
[1767386910740,6.41069248,3119.8,3118.6,3.20651151]
[1767386910741,2.48534714,3119.5,3118.6,3.20651151]
[1767386911741,2.48534714,3119.5,3118.7,3.20640491]
[1767386911961,2.81798185,3119.5,3118.7,3.20640491]
[1767386912980,2.48534714,3119.3,3118.5,5.5400673]
[1767386913985,2.48534714,3119.3,3118.5,8.74673717]
[1767386914486,2.48534714,3119.3,3118.6,2.33242816]
[1767386915486,2.48534714,3119.3,3118.7,3.20646423]
[1767386920655,5.69119547,3119.3,3118.6,2.33242816]
[1767386920984,3.20584833,3119.3,3118.6,2.33242816]
[1767386921153,2.48534714,3119.2,3118.6,2.33242816]
[1767386921355,2.52542151,3119.2,3118.5,3.20762371]
[1767386921973,2.48534714,3119.1,3118.5,2.33342816]
[1767386922367,2.48534714,3119.1,3118.5,3.29222552]
[1767386922882,2.48534714,3119.1,3118.5,2.33342816]
[1767386924153,2.48534714,3119.3,3118.5,5.54000262]
[1767386924358,2.48534714,3119.3,3118.6,2.33242816]
[1767386926363,2.48534714,3119.3,3118.7,3.20646423]
[1767386927393,2.48534714,3119.3,3118.7,6.41292846]
[1767386927573,2.48534714,3119.3,3118.7,3.20646423]
[1767386928171,0.002,3119.4,3118.8,2.33242816]
[1767386928387,0.002,3119.4,3118.9,5.53868677]
[1767386930087,0.002,3119.4,3118.9,5.57088677]
[1767386931194,0.002,3119.4,3118.9,2.36462816]
[1767386931898,2.48734714,3119.4,3118.9,0.0322]
[1767386932815,2.52741894,3119.4,3118.9,0.0322]
[1767386932961,2.48534714,3119.3,3118.9,0.0322]
[1767386933160,2.48534714,3119.1,3118.9,0.0322]
[1767386933366,2.48534714,3119.3,3118.9,0.0322]
[1767386934000,4.10168413,3119.4,3118.5,2.33342816]
[1767386934001,2.48534714,3119.1,3118.5,0.001]
[1767386935374,2.48534714,3118.9,3118.5,0.001]
[1767386937604,2.48534714,3118.8,3118.5,0.001]
[1767386937774,2.48534714,3118.7,3117.7,2.33242816]
[1767386937966,2.48534714,3118.7,3117.6,2.33342816]
[1767386938166,2.48534714,3118.5,3117.6,5.54100631]
[1767386938469,2.48534714,3118.5,3117.7,3.20742654]
[1767386938666,2.48534714,3118.5,3117.8,3.20735867]
[1767386938905,2.48534714,3118.5,3117.9,3.2072632]
[1767386939604,2.48534714,3118.5,3117.7,5.53989133]
[1767386939784,2.48534714,3118.5,3117.8,3.20738982]
[1767386940101,2.76714532,3118.5,3117.8,3.20738982]
[1767386940289,5.97381641,3118.5,3117.8,3.20738982]
[1767386940485,2.31359641,3118.4,3117.8,3.20738982]
[1767386942204,0.28179818,3118.5,3117.8,5.66564436]
[1767386942205,2.59539459,3118.5,3117.8,5.66564436]
[1767386942777,5.80208594,3118.5,3117.8,5.66564436]
[1767386942979,2.31359641,3118.3,3117.7,3.20744594]
[1767386943593,2.31359641,3118.3,3117.8,0.001]
[1767386944005,0.61347207,3118.4,3117.8,2.45925454]
[1767386944198,2.31359641,3118.5,3117.8,2.45925454]
[1767386944504,2.31359641,3118.4,3117.8,2.45925454]
[1767386944810,2.31359641,3118.4,3117.8,0.001]
[1767386946976,2.31359641,3118.3,3117.8,0.001]
[1767386948507,3.20697838,3118.2,3117.8,0.001]
[1767386948713,1.19341315,3118.2,3117.8,0.001]
[1767386948913,5.52049309,3118.3,3117.8,0.001]
[1767386948914,2.31359641,3118.3,3117.8,0.001]
[1767386949084,5.52049795,3118.3,3117.8,0.001]
[1767386950394,5.52249795,3118.3,3117.8,0.001]
[1767386951382,2.31559641,3118.3,3117.8,0.001]
[1767386951579,5.52247713,3118.3,3117.8,0.001]
[1767386952411,0.55224771,3118.2,3117.8,0.001]
[1767386953109,6.07284001,3118.2,3117.8,0.001]
[1767386953312,9.2798359,3118.2,3117.8,0.001]
[1767386953697,6.07284001,3118.2,3117.8,0.001]
[1767386954832,2.86584412,3118.2,3117.8,0.001]
[1767386955411,0.55224771,3118.2,3117.8,0.001]
[1767386956022,0.002,3118.3,3117.9,2.45825454]
[1767386956320,2.35367978,3118.5,3117.9,2.45825454]
[1767386956813,5.52029942,3118.5,3117.9,2.45825454]
[1767386957623,2.31359641,3118.5,3117.9,3.20727078]
[1767386957920,0.002,3118.3,3118.0,0.56665253]
[1767386958486,0.002,3118.3,3118.0,3.02490707]
[1767386958707,5.52012028,3118.7,3118.0,3.02490707]
[1767386958901,2.31359641,3118.7,3118.1,3.20708123]
[1767386959238,5.5200734,3118.7,3118.0,3.02490707]
[1767386959935,5.5200734,3118.7,3118.0,6.23203995]
[1767386960338,5.5200734,3118.7,3118.0,3.02490707]
[1767386961215,8.72655039,3118.7,3118.0,3.02490707]
[1767386961414,2.31359641,3118.6,3118.0,3.02490707]
[1767386961616,2.31359641,3118.6,3118.0,0.56665253]
[1767386961804,2.31359641,3118.6,3117.8,0.001]
[1767386962005,2.31359641,3118.6,3117.8,3.20833332]
[1767386962232,2.31359641,3118.6,3117.8,5.66658786]
[1767386962437,2.31359641,3118.6,3117.9,3.20725969]
[1767386963134,5.52017525,3118.6,3117.9,5.66551423]
[1767386963437,2.31359641,3118.6,3117.9,8.87280118]
[1767386963605,2.31359641,3118.8,3118.0,0.88738012]
[1767386963807,2.31359641,3118.8,3118.1,2.45825454]
[1767386964534,2.31359641,3118.8,3118.0,0.88738012]
[1767386965031,0.002,3118.6,3118.0,0.88738012]
[1767386965335,2.31559641,3118.6,3118.0,0.88738012]
[1767386965634,2.31559641,3118.6,3118.0,4.09454348]
[1767386966039,5.52217747,3118.6,3118.0,0.88738012]
[1767386966236,2.31559641,3118.6,3118.1,0.6552798]
[1767386967627,2.31559641,3118.6,3118.1,3.86233421]
[1767386968708,2.31559641,3118.6,3118.1,0.6552798]
[1767386969310,2.31559641,3118.6,3118.1,3.8623586]
[1767386969804,2.31559641,3118.6,3118.1,0.6552798]
[1767386970636,2.31559641,3118.6,3118.0,5.66389875]
[1767386971042,2.31559641,3118.6,3118.1,3.20706128]
[1767386971336,2.31559641,3118.6,3118.0,2.45674215]
[1767386971538,2.31559641,3118.6,3118.0,5.66387503]
[1767386973236,5.52221748,3118.6,3117.9,3.20825868]
[1767386973436,5.52221748,3118.6,3117.9,3.91814612]
[1767386973612,2.43989677,3118.5,3117.9,3.91814612]
[1767386974249,2.47998142,3118.4,3117.9,0.001]
[1767386974448,2.43989677,3118.4,3117.9,0.001]
[1767386974647,2.43989677,3118.4,3117.9,3.20828379]
[1767386975327,5.64846874,3118.6,3117.9,5.66502594]
[1767386975522,2.44189677,3118.6,3117.9,5.66502594]
[1767386975751,2.44189677,3118.6,3118.0,0.88734147]
[1767386975913,2.44189677,3118.6,3118.0,4.09451714]
[1767386976644,5.64848136,3118.6,3118.0,0.88734147]
[1767386977114,2.44189677,3118.6,3118.0,4.09450364]
[1767386977315,2.44189677,3118.6,3118.0,0.88734147]
[1767386977651,5.64846622,3118.6,3118.0,0.88734147]
[1767386978248,2.44189677,3118.6,3118.0,4.09449606]
[1767386978849,5.64846531,3118.6,3118.0,0.88734147]
[1767386979052,2.44189677,3118.6,3118.0,4.09449984]
[1767386979730,2.44189677,3118.6,3118.0,0.88734147]
[1767386980031,2.44189677,3118.6,3117.9,2.45774215]
[1767386980330,5.64846716,3118.6,3117.9,2.45774215]
[1767386980624,0.002,3118.6,3117.9,2.45774215]
[1767386982544,0.002,3118.6,3118.1,2.45674215]
[1767386982765,6.4879681,3119.1,3118.4,6.34635791]
[1767386983063,6.4879681,3119.1,3118.0,6.41436818]
[1767386983064,2.43989677,3119.0,3118.1,3.09827897]
[1767386984263,2.43989677,3118.8,3118.1,3.09827897]
[1767386984614,2.43989677,3118.8,3118.1,6.30533792]
[1767386986352,2.43989677,3118.8,3118.1,3.09827897]
[1767386986652,2.43989677,3118.8,3118.2,0.95126472]
[1767386986857,2.43989677,3118.8,3118.2,3.40800687]
[1767386987462,4.04809026,3119.1,3118.2,3.40800687]
[1767386987756,2.43989677,3119.0,3118.2,3.40800687]
[1767386987927,2.43989677,3119.3,3118.2,4.84088048]
[1767386988124,2.43989677,3119.3,3118.3,0.63234173]
[1767386988327,2.43989677,3119.1,3118.4,3.2067727]
[1767386989253,0.002,3118.8,3118.4,3.2067727]
[1767386989952,0.002,3118.8,3118.4,6.4135454]
[1767386990155,0.002,3118.8,3118.4,3.2067727]
[1767386990455,0.002,3118.8,3118.4,4.64113342]
[1767386993490,0.002,3118.8,3118.4,7.84790612]
[1767386993668,0.002,3118.8,3118.4,10.30897779]
[1767386993986,0.002,3118.8,3118.4,7.10220509]
[1767386994185,0.002,3118.8,3118.4,8.87461707]
[1767386995388,0.002,3118.8,3118.4,5.66784437]
[1767386997660,0.002,3118.8,3118.4,8.87461707]
[1767386998685,2.47849262,3119.3,3118.5,2.46107167]
[1767386998885,0.002,3119.4,3118.5,2.46107167]
[1767386999187,2.48049262,3119.4,3118.7,2.46107167]
[1767386999693,2.37727477,3119.3,3118.6,6.45557525]
[1767386999880,2.37727477,3119.3,3118.6,4.09400518]
[1767387000312,2.41734914,3119.2,3118.7,3.2064351]
[1767387000477,0.002,3119.8,3118.9,2.36160922]
[1767387001029,0.002,3120.3,3119.5,2.36160922]
[1767387001030,1.46013254,3120.2,3119.5,2.36160922]
[1767387001316,1.46013254,3120.2,3118.9,2.36160922]
[1767387001317,2.41733758,3120.1,3118.9,2.36160922]
[1767387001482,3.2051282,3120.0,3118.9,2.36160922]
[1767387001680,2.37727477,3119.8,3118.6,0.0323]
[1767387001892,2.37727477,3119.6,3118.6,0.0323]
[1767387002093,2.37727477,3119.4,3118.6,0.0323]
[1767387002507,2.37727477,3119.4,3118.6,3.23877958]
[1767387002696,0.5582403,3119.9,3119.0,2.36060922]
[1767387002897,0.93457715,3119.8,3119.0,2.35960922]
[1767387003092,3.21827477,3119.9,3119.0,2.35960922]
[1767387003622,2.37727477,3119.6,3118.8,5.56788516]
[1767387003904,5.58262799,3119.8,3119.0,5.56773371]
[1767387004115,5.58241353,3120.0,3119.1,2.36160922]
[1767387004284,2.37727477,3119.9,3119.1,2.36160922]
[1767387004484,2.37727477,3119.7,3119.1,2.36160922]
[1767387004690,2.37727477,3119.7,3118.9,2.36160922]
[1767387005382,2.37927477,3119.6,3118.9,5.56781223]
[1767387005583,2.37927477,3119.6,3118.9,2.36160922]
[1767387005784,0.002,3119.6,3119.0,2.36160922]
[1767387006018,0.002,3119.6,3119.1,2.36160922]
[1767387006516,4.66511532,3120.2,3119.4,2.36160922]
[1767387007015,1.46013254,3120.2,3119.4,2.36160922]
[1767387007229,2.37727477,3120.1,3119.0,1.71840859]
[1767387007406,2.37727477,3119.9,3119.0,0.841]
[1767387007610,3.20553917,3119.6,3118.9,5.56786492]
[1767387007811,5.58281394,3119.6,3118.9,2.36160922]
[1767387008112,2.37727477,3119.5,3118.9,2.36160922]
[1767387008697,2.37727477,3119.5,3118.9,5.56781662]
[1767387009222,2.37727477,3119.5,3118.9,2.36160922]
[1767387010022,2.37727477,3119.5,3118.9,5.56783748]
[1767387010321,3.20534664,3119.8,3119.0,2.36160922]
[1767387010322,2.37727477,3119.8,3119.0,2.36160922]
[1767387010497,4.22990023,3120.0,3119.0,2.36160922]
[1767387010693,9.81234906,3120.0,3119.0,2.36160922]
[1767387010897,2.37727477,3119.9,3119.0,2.36160922]
[1767387011095,2.37727477,3119.7,3119.0,2.36160922]
[1767387011803,2.37727477,3119.7,3118.8,2.36160922]
[1767387012145,2.37727477,3119.5,3118.6,0.0323]
[1767387012311,2.37727477,3119.5,3118.6,2.39390922]
[1767387012514,2.37727477,3119.5,3118.6,0.0323]
[1767387012720,2.37727477,3119.3,3118.6,0.0323]
[1767387014033,3.20592189,3119.3,3118.6,2.39390922]
[1767387014233,3.20556756,3119.6,3118.7,2.36160922]
[1767387014736,3.20748621,3119.7,3118.7,2.36160922]
[1767387015436,6.41297242,3119.7,3118.7,2.36160922]
[1767387015644,0.04006923,3119.6,3118.8,2.36160922]
[1767387015808,5.58476098,3119.7,3118.8,2.36160922]
[1767387016008,5.5828698,3119.6,3118.8,5.5678803]
[1767387016336,5.2328698,3119.6,3118.8,5.5678803]
[1767387016634,5.2328698,3119.6,3118.9,2.36160922]
[1767387016834,2.02727477,3119.6,3118.9,3.32711333]
[1767387017027,2.02727477,3119.6,3118.9,2.36160922]
[1767387018335,5.23285177,3119.6,3119.0,2.36160922]
[1767387018527,2.02727477,3119.6,3119.0,2.36160922]
[1767387018749,3.2074798,3119.7,3119.0,2.36160922]
[1767387019617,0.002,3119.7,3119.1,2.36160922]
[1767387020132,2.06017928,3119.4,3118.7,5.56800296]
[1767387020728,2.06017928,3119.4,3118.8,2.36160922]
[1767387021132,2.06017928,3119.4,3118.9,0.001]
[1767387021330,2.06017928,3119.3,3118.9,0.001]
[1767387022540,3.20595024,3119.2,3118.9,0.001]
[1767387023029,3.20595024,3119.2,3118.9,0.0333]
[1767387023229,5.26607459,3119.3,3118.9,0.0333]
[1767387023726,2.06017928,3119.3,3118.9,0.0333]
[1767387024038,8.47191816,3119.3,3118.9,0.0333]
[1767387024221,9.40382461,3119.3,3118.9,0.0333]
[1767387024628,6.19795517,3119.3,3118.9,0.0333]
[1767387026055,3.20579615,3119.4,3118.9,0.0333]
[1767387026247,8.47177158,3119.4,3118.9,0.0333]
[1767387026850,2.06017928,3119.3,3118.9,0.0333]
[1767387028353,2.06017928,3119.6,3118.9,2.42357962]
[1767387028953,6.41128384,3119.5,3118.9,2.42357962]
[1767387029133,3.20564192,3119.5,3118.9,2.42357962]
[1767387029431,6.41128384,3119.5,3118.9,2.42357962]
[1767387029955,5.2658212,3119.5,3118.9,2.42357962]
[1767387030167,8.47146312,3119.5,3118.9,2.42357962]
[1767387031364,9.31880943,3119.5,3118.9,2.42357962]
[1767387031538,9.31880943,3119.5,3118.9,0.0333]
[1767387032637,6.11316751,3119.5,3118.9,0.0333]
[1767387032871,9.31880943,3119.5,3118.9,0.0333]
[1767387033472,6.11316751,3119.5,3118.9,0.0333]
[1767387033673,5.2658212,3119.5,3118.9,0.0333]
[1767387033879,8.47146312,3119.5,3118.9,0.0333]
[1767387034965,2.06017928,3119.5,3118.9,2.30766919]
[1767387035175,2.06017928,3119.5,3118.9,5.51388004]
[1767387035468,5.26583503,3119.5,3118.9,2.30766919]
[1767387035667,0.002,3119.6,3119.0,2.27436919]
[1767387036663,0.002,3119.7,3119.6,2.27436919]
[1767387037066,0.002,3119.7,3119.4,2.27436919]
[1767387038976,0.002,3119.7,3119.2,2.27436919]
[1767387039355,0.002,3119.7,3119.2,5.48031833]
[1767387039582,0.002,3119.7,3119.3,2.82240102]
[1767387040263,0.002,3119.7,3119.3,6.02824697]
[1767387040461,0.002,3119.7,3119.4,2.27436919]
[1767387041251,2.06417928,3119.7,3118.9,0.55328971]
[1767387041485,2.06217928,3119.5,3118.9,0.0008]
[1767387041662,2.06217928,3119.1,3118.8,0.0008]
[1767387042181,2.06217928,3119.1,3118.4,2.27536919]
[1767387042182,2.06217928,3119.0,3118.4,0.001]
[1767387042392,2.06217928,3119.0,3118.0,0.001]
[1767387044592,2.06217928,3118.8,3118.0,0.001]
[1767387044753,2.90964893,3118.7,3118.0,0.001]
[1767387045161,2.90964893,3118.7,3118.0,0.0333]
[1767387045373,2.90964893,3118.7,3118.0,2.30766919]
[1767387047262,0.84746965,3118.7,3118.1,2.27436919]
[1767387047459,3.20640534,3118.8,3118.1,2.27436919]
[1767387047691,2.06217928,3119.3,3118.1,2.27436919]
[1767387048005,3.20595024,3119.2,3118.1,2.27436919]
[1767387049178,6.41148938,3119.4,3118.3,2.27436919]
[1767387049471,6.41148938,3119.4,3118.5,2.27436919]
[1767387050004,3.20574469,3119.4,3118.5,2.27436919]
[1767387051299,3.20574469,3119.4,3118.6,2.27436919]
[1767387051596,8.47366866,3119.4,3118.6,2.27436919]
[1767387052474,0.04007309,3119.3,3118.6,2.27436919]
[1767387052698,0.97554726,3119.3,3118.6,2.27436919]
[1767387053321,2.06217928,3119.1,3118.4,2.43321803]
[1767387053498,2.06217928,3119.1,3118.4,5.63998542]
[1767387053704,3.20595024,3119.2,3118.5,2.43321803]
[1767387054426,6.41190048,3119.2,3118.5,2.43321803]
[1767387056126,2.06217928,3119.2,3118.5,2.43321803]
[1767387056355,0.84738742,3119.1,3118.5,2.43321803]
[1767387056502,2.06342003,3118.9,3118.0,0.001]
[1767387058425,2.06342003,3118.7,3117.9,2.43421803]
[1767387060246,2.06342003,3118.7,3117.9,0.001]
[1767387060415,2.06342003,3118.5,3117.9,0.001]
[1767387060743,2.06342003,3118.5,3117.9,2.29581099]
[1767387061349,2.06342003,3118.5,3117.8,0.001]
[1767387062439,6.4135454,3118.4,3117.8,0.001]
[1767387063354,2.0636429,3118.3,3117.8,0.001]
[1767387063534,2.91136173,3118.2,3117.8,0.001]
[1767387063719,0.84771883,3118.2,3117.8,0.001]
[1767387064550,3.20708123,3118.1,3117.8,0.001]
[1767387065061,6.41416246,3118.1,3117.8,0.001]
[1767387065222,2.0636429,3118.0,3117.6,0.001]
[1767387065429,3.20682072,3118.4,3117.6,2.29581099]
[1767387065628,0.841,3118.3,3117.6,2.29581099]
[1767387065830,4.04796526,3118.3,3117.9,2.29481099]
[1767387066059,0.841,3118.3,3117.9,2.29481099]
[1767387066859,3.20697838,3118.2,3117.9,2.29481099]
[1767387067431,3.20697838,3118.2,3117.7,2.29460507]
[1767387067649,7.13945159,3118.2,3117.7,2.29460507]
[1767387068171,7.13945159,3118.2,3117.7,2.29340329]
[1767387068758,7.13945159,3118.2,3117.9,0.0313]
[1767387068964,7.13945159,3118.2,3117.9,0.03008068]
[1767387069165,7.13945159,3118.2,3117.7,2.29340329]
[1767387069371,0.79804516,3118.1,3117.6,0.001]
[1767387069750,0.79804516,3118.1,3117.6,2.29581099]
[1767387071278,3.20718409,3118.0,3117.6,2.29581099]
[1767387073462,3.20718409,3118.0,3117.6,0.001]
[1767387073662,2.0650506,3117.9,3117.3,0.001]
[1767387073886,2.0650506,3117.8,3117.3,0.001]
[1767387074245,2.0650506,3117.8,3117.5,0.001]
[1767387074653,2.0650506,3117.8,3117.3,0.001]
[1767387074985,0.9277371,3117.9,3117.3,0.001]
[1767387075203,0.94071559,3117.8,3117.3,0.0387]
[1767387075430,0.94071559,3117.8,3117.3,2.33351099]
[1767387075982,8.73539989,3117.7,3117.2,0.001]
[1767387076582,2.32041449,3117.6,3117.2,0.001]
[1767387078090,3.20769847,3117.5,3117.1,0.001]
[1767387079489,5.52811296,3117.5,3117.1,0.001]
[1767387080312,2.32041449,3117.4,3117.0,0.001]
[1767387080534,2.87322579,3117.4,3117.0,0.001]
[1767387081597,2.87322579,3117.4,3116.8,0.001]
[1767387082395,3.20790427,3117.3,3116.8,0.001]
[1767387083412,5.52831876,3117.3,3116.8,0.001]
[1767387083719,2.32041449,3117.2,3116.8,0.001]
[1767387084638,5.52852298,3117.2,3116.8,0.001]
[1767387084939,3.20810849,3117.2,3116.8,0.001]
[1767387085541,3.20795501,3117.3,3116.8,0.001]
[1767387086003,6.08107205,3117.4,3116.8,0.001]
[1767387086744,8.73637125,3118.2,3117.3,2.29481099]
[1767387086908,0.002,3118.2,3117.3,2.29481099]
[1767387087233,0.002,3118.2,3117.5,2.29481099]
[1767387088842,0.002,3118.2,3117.6,2.33240285]
[1767387089046,0.002,3118.2,3117.8,2.33240285]
[1767387089529,0.002,3118.2,3117.7,0.55400128]
[1767387089753,0.002,3118.2,3117.5,2.45821657]
[1767387090249,0.002,3118.2,3117.6,2.45821657]
[1767387090952,0.002,3118.2,3117.7,2.45821657]
[1767387092858,2.34644898,3118.2,3117.3,2.45821657]
[1767387093147,2.34444898,3118.0,3117.3,3.2078992]
[1767387093350,2.34444898,3118.0,3117.4,2.45821657]
[1767387093519,3.20708123,3118.1,3117.4,2.45821657]
[1767387093725,0.002,3118.2,3117.6,2.45821657]
[1767387093924,3.20901498,3118.2,3117.6,2.45821657]
[1767387094154,2.34444898,3118.1,3117.4,2.45821657]
[1767387095339,6.41436818,3118.0,3117.4,2.45821657]
[1767387095530,3.20718409,3118.0,3117.4,2.45821657]
[1767387095730,6.41436818,3118.0,3117.4,2.45821657]
[1767387098042,8.75881716,3118.0,3116.9,3.20829357]
[1767387098237,2.34444898,3117.9,3117.0,2.45821657]
[1767387098443,2.34444898,3117.9,3117.1,2.45821657]
[1767387099470,8.75922862,3117.8,3117.1,2.45821657]
[1767387100070,2.34444898,3117.7,3117.1,2.45821657]
[1767387100237,2.34444898,3117.6,3116.9,2.45821657]
[1767387100639,2.34444898,3117.6,3116.8,0.001]
[1767387101437,2.34444898,3117.6,3116.8,2.45921657]
[1767387101844,8.75984592,3117.5,3116.8,2.45921657]
[1767387102044,0.87598459,3117.4,3116.8,2.45921657]
[1767387102552,3.22043357,3117.4,3116.8,2.45921657]
[1767387104175,3.20790427,3117.3,3116.8,2.45921657]
[1767387105249,4.08383319,3117.4,3116.8,2.45921657]
[1767387105449,7.29168179,3117.4,3116.8,2.45921657]
[1767387106065,9.63613077,3117.4,3116.8,2.45921657]
[1767387106381,3.20800718,3117.2,3116.8,2.45921657]
[1767387106875,6.41601436,3117.2,3116.8,0.001]